bitfinex/quotes_SOLUSD_20240824
["timestamp","ask_amount","ask_price","bid_price","bid_amount"]
[1724461291189,1.0,153.35,153.32,26.18310426]
[1724461291494,1.0,153.35,153.33,17.91671529]
[1724461292077,1.0,153.35,153.33,16.6126]
[1724461294884,1.0,153.35,153.34,1.30418512]
[1724461295096,1.0,153.35,153.33,17.9167181]
[1724461295287,1.0,153.35,153.33,16.6126]
[1724461304807,1.0,153.35,153.3,26.18310426]
[1724461305096,1.0,153.35,153.29,15.022]
[1724461306681,1.0,153.35,153.3,1.30433135]
[1724461308217,1.0,153.35,153.29,15.022]
[1724461308389,1.0,153.35,153.3,0.12549]
[1724461308588,1.0,153.35,153.3,26.30859426]
[1724461309397,1.0,153.35,153.31,1.30422121]
[1724461310291,1.0,153.35,153.3,26.30859426]
[1724461312421,6.2077,153.34,153.25,1.62820405]
[1724461312612,0.84076327,153.33,153.24,0.8248727]
[1724461312806,0.84076327,153.32,153.24,0.8248727]
[1724461313325,12.7292,153.34,153.25,1.3046983]
[1724461313531,6.2077,153.34,153.25,1.3046983]
[1724461313813,7.04846327,153.34,153.24,27.00797696]
[1724461314213,7.04846327,153.34,153.25,0.12549]
[1724461314722,30.0,153.31,153.25,0.12549]
[1724461315109,30.0,153.31,153.26,26.18310426]
[1724461315440,30.0,153.31,153.27,1.43000477]
[1724461315741,30.0,153.31,153.27,46.43000477]
[1724461315909,30.0,153.31,153.27,45.12549]
[1724461316437,6.2077,153.34,153.27,45.12549]
[1724461317036,13.56996327,153.34,153.27,45.12549]
[1724461317332,7.04846327,153.34,153.27,0.12549]
[1724461317542,6.2077,153.34,153.27,0.12549]
[1724461318121,6.2077,153.34,153.27,1.42994319]
[1724461318844,17.2655,153.35,153.28,26.18310426]
[1724461319226,17.2655,153.35,153.29,0.12549]
[1724461320012,1.0,153.35,153.29,0.12549]
[1724461321738,1.0,153.35,153.29,1.4298332]
[1724461322540,1.0,153.35,153.29,0.12549]
[1724461323117,1.0,153.35,153.29,1.42978275]
[1724461323819,1.0,153.35,153.3,27.46266607]
[1724461324020,1.0,153.35,153.31,0.12549]
[1724461324634,1.0,153.35,153.28,41.9525732]
[1724461324942,1.0,153.35,153.28,15.7942]
[1724461325120,4.05651028,153.34,153.26,26.1583732]
[1724461325445,1.0,153.35,153.28,26.1583732]
[1724461326249,4.05637497,153.34,153.29,0.12549]
[1724461326424,1.0,153.35,153.29,0.12549]
[1724461326748,4.05639691,153.34,153.29,0.12549]
[1724461326921,1.0,153.35,153.29,0.12549]
[1724461327117,4.05634519,153.34,153.29,0.12549]
[1724461327329,1.0,153.35,153.29,1.42974728]
[1724461327538,4.05632233,153.34,153.29,1.42974728]
[1724461327749,1.0,153.35,153.29,1.42974728]
[1724461327924,4.0563115,153.34,153.29,1.42974728]
[1724461328246,1.0,153.35,153.29,46.42974728]
[1724461328455,1.0,153.35,153.3,26.1583732]
[1724461328745,1.0,153.35,153.31,1.42966325]
[1724461329350,1.0,153.35,153.3,26.1583732]
[1724461329558,4.05628659,153.34,153.29,15.7942]
[1724461329720,1.0,153.35,153.28,26.2838632]
[1724461329933,4.05630958,153.34,153.28,0.12549]
[1724461330132,1.0,153.35,153.27,0.12549]
[1724461330348,4.89725323,153.34,153.25,15.7942]
[1724461330546,19.17198996,153.33,153.24,0.8248727]
[1724461330836,1.0,153.35,153.26,26.1583732]
[1724461331160,4.05668042,153.34,153.26,26.1583732]
[1724461331351,4.05668042,153.33,153.26,26.1583732]
[1724461331529,1.0,153.35,153.26,26.1583732]
[1724461331726,4.05672817,153.34,153.26,26.1583732]
[1724461332035,1.0,153.35,153.27,0.12549]
[1724461332036,4.05672817,153.33,153.27,0.12549]
[1724461332234,1.84076327,153.35,153.27,0.12549]
[1724461332428,4.05665627,153.34,153.27,0.12549]
[1724461332624,4.05665627,153.33,153.27,0.12549]
[1724461332851,1.0,153.35,153.27,45.12549]
[1724461333030,4.05634042,153.34,153.27,45.12549]
[1724461333342,1.0,153.35,153.27,45.12549]
[1724461333556,4.05633996,153.34,153.27,45.12549]
[1724461333747,1.0,153.35,153.27,45.12549]
[1724461333930,4.05637711,153.34,153.27,45.12549]
[1724461334132,1.0,153.35,153.28,0.12549]
[1724461334430,1.0,153.35,153.28,26.2838632]
[1724461334431,4.05641303,153.34,153.28,26.2838632]
[1724461334633,1.0,153.35,153.3,26.1583732]
[1724461334856,1.0,153.35,153.31,0.12549]
[1724461337939,1.0,153.35,153.28,26.2838632]
[1724461338138,1.0,153.35,153.29,0.12549]
[1724461338355,1.0,153.35,153.28,20.12549]
[1724461338754,4.05648958,153.34,153.28,20.0]
[1724461338966,4.05648958,153.33,153.27,20.0]
[1724461339175,18.44246327,153.35,153.27,20.0]
[1724461339335,4.05664033,153.34,153.27,20.0]
[1724461339676,4.05666722,153.33,153.27,20.0]
[1724461339970,4.05666722,153.32,153.27,20.0]
[1724461340266,18.44246327,153.35,153.27,20.0]
[1724461340471,4.05678313,153.34,153.27,20.0]
[1724461340640,4.05678313,153.33,153.27,20.0]
[1724461340842,4.05678313,153.32,153.27,20.0]
[1724461341040,18.44246327,153.35,153.27,20.0]
[1724461341240,4.05667391,153.34,153.27,20.0]
[1724461341452,4.05667391,153.33,153.27,20.0]
[1724461341671,18.44246327,153.35,153.27,20.0]
[1724461341853,4.05675102,153.34,153.27,20.0]
[1724461342149,4.05675102,153.33,153.27,20.0]
[1724461342352,4.05675102,153.32,153.27,20.0]
[1724461342546,18.44246327,153.35,153.27,20.0]
[1724461342747,4.0567501,153.34,153.27,20.0]
[1724461342959,4.0567501,153.33,153.27,20.0]
[1724461343184,17.6017,153.35,153.27,20.0]
[1724461343464,4.05658342,153.34,153.27,20.0]
[1724461343653,4.05658342,153.33,153.27,20.0]
[1724461344164,17.6017,153.35,153.27,20.0]
[1724461344346,4.05666656,153.34,153.26,0.12549]
[1724461344548,4.05666656,153.34,153.24,26.9903523]
[1724461344549,4.89742983,153.33,153.25,0.12549]
[1724461344777,4.89742983,153.32,153.25,0.12549]
[1724461344984,4.05666656,153.31,153.25,0.12549]
[1724461345282,4.05666656,153.3,153.25,0.12549]
[1724461345490,4.89742983,153.29,153.24,0.8248727]
[1724461345654,4.89847949,153.28,153.24,0.8248727]
[1724461345982,4.05738745,153.27,153.24,0.8248727]
[1724461346184,30.0,153.25,153.24,0.8248727]
[1724461346354,34.05738745,153.25,153.24,0.8248727]
[1724461347181,34.05691087,153.25,153.24,0.8248727]
[1724461347376,30.0,153.25,153.24,0.8248727]
[1724461348057,34.05613417,153.25,153.24,0.8248727]
[1724461348264,34.05658617,153.25,153.24,0.8248727]
[1724461348781,30.0,153.25,153.24,0.8248727]
[1724461351249,0.84076327,153.28,153.24,0.8248727]
[1724461351484,4.05521768,153.27,153.24,0.8248727]
[1724461351674,0.84076327,153.26,153.24,0.8248727]
[1724461352686,0.84076327,153.28,153.24,0.8248727]
[1724461352888,4.05523872,153.27,153.24,0.8248727]
[1724461353185,0.84076327,153.26,153.24,0.8248727]
[1724461353985,0.84076327,153.28,153.24,0.8248727]
[1724461354873,0.12549,153.27,153.24,0.8248727]
[1724461356175,0.96625327,153.27,153.24,0.8248727]
[1724461356880,65.96625327,153.27,153.24,0.8248727]
[1724461357583,6.2412,153.25,153.24,0.8248727]
[1724461357788,7.08196327,153.25,153.24,0.8248727]
[1724461358085,41.138149,153.25,153.24,0.8248727]
[1724461358261,61.263639,153.25,153.24,0.8248727]
[1724461360182,34.05636581,153.25,153.24,0.8248727]
[1724461360386,30.0,153.25,153.24,0.8248727]
[1724461361185,30.84076327,153.25,153.24,0.8248727]
[1724461361393,30.0,153.25,153.24,0.8248727]
[1724461361785,6.81552722,153.26,153.24,0.8248727]
[1724461362092,0.84076327,153.25,153.24,0.8248727]
[1724461362295,0.96625327,153.25,153.24,0.8248727]
[1724461363278,30.96625327,153.25,153.24,0.8248727]
[1724461364477,75.96625327,153.25,153.24,0.8248727]
[1724461365170,95.96625327,153.25,153.24,0.8248727]
[1724461365369,96.09174327,153.25,153.24,0.8248727]
[1724461367181,118.72734327,153.25,153.24,0.8248727]
[1724461368712,117.88658,153.25,153.24,0.8248727]
[1724461369199,118.72734327,153.25,153.24,0.8248727]
[1724461369408,117.76109,153.25,153.24,0.8248727]
[1724461369607,30.0,153.25,153.24,0.8248727]
[1724461369777,6.81552722,153.26,153.24,0.8248727]
[1724461370217,0.84076327,153.25,153.24,0.8248727]
[1724461372416,0.96625327,153.25,153.24,0.8248727]
[1724461373900,0.12549,153.25,153.24,0.8248727]
[1724461374103,6.81447415,153.26,153.24,0.8248727]
[1724461374985,0.84076327,153.25,153.24,0.8248727]
[1724461377693,66.09174327,153.25,153.24,0.8248727]
[1724461377885,65.25098,153.25,153.24,0.8248727]
[1724461380619,69.30671099,153.25,153.24,0.8248727]
[1724461381623,70.14751812,153.25,153.24,0.8248727]
[1724461382893,69.30675485,153.25,153.24,0.8248727]
[1724461384224,69.18126485,153.25,153.24,0.8248727]
[1724461384525,70.02202812,153.25,153.24,0.8248727]
[1724461384705,24.18126485,153.25,153.24,0.8248727]
[1724461384909,4.05577485,153.25,153.24,0.8248727]
[1724461386295,24.05577485,153.25,153.24,0.8248727]
[1724461386513,24.89653812,153.25,153.24,0.8248727]
[1724461387127,24.89679254,153.25,153.24,0.8248727]
[1724461391123,70.02228254,153.25,153.24,0.8248727]
[1724461392001,70.14510589,153.25,153.24,0.8248727]
[1724461393402,66.09174327,153.25,153.24,0.8248727]
[1724461393724,66.09174327,153.25,153.13,22.7982]
[1724461393725,70.1450131,153.25,153.13,22.7982]
[1724461393894,26.1654796,153.22,153.13,22.7982]
[1724461394229,24.8940331,153.21,153.13,22.7982]
[1724461394410,4.8940331,153.2,153.13,22.7982]
[1724461394714,4.05326983,153.19,153.13,22.7982]
[1724461394892,4.8940331,153.18,153.13,22.7982]
[1724461395098,4.8940331,153.17,153.13,22.7982]
[1724461395293,4.05362082,153.16,153.13,22.7982]
[1724461395520,0.84076327,153.2,153.13,22.7982]
[1724461395716,4.05372995,153.19,153.13,22.7982]
[1724461395921,4.89449322,153.18,153.13,16.1704]
[1724461396112,4.89449322,153.17,153.13,16.1704]
[1724461396420,4.05372995,153.16,153.09,22.7982]
[1724461396608,0.84076327,153.17,153.09,22.7982]
[1724461396609,0.84076327,153.15,153.09,22.7982]
[1724461396815,4.0534984,153.15,153.09,22.7982]
[1724461397016,0.84076327,153.19,153.09,22.7982]
[1724461397017,4.89426167,153.19,153.09,22.7982]
[1724461397223,4.05331111,153.18,153.09,22.7982]
[1724461397420,4.89407438,153.17,153.09,22.7982]
[1724461397722,4.05331111,153.16,153.09,22.7982]
[1724461397927,4.89407438,153.15,153.09,22.7982]
[1724461398127,0.84076327,153.14,153.09,22.7982]
[1724461398305,0.84076327,153.18,153.09,22.7982]
[1724461398623,5.01925001,153.17,153.09,22.7982]
[1724461398808,4.05299674,153.16,153.09,22.7982]
[1724461399017,4.89376001,153.15,153.08,0.8248727]
[1724461399211,4.89376001,153.14,153.08,0.8248727]
[1724461399427,0.84076327,153.14,153.08,0.8248727]
[1724461399633,4.30342232,153.13,153.08,0.8248727]
[1724461399808,4.89320559,153.12,153.08,0.8248727]
[1724461400009,30.0,153.1,153.08,0.8248727]
[1724461400325,0.84076327,153.09,153.08,0.8248727]
[1724461400535,4.89236936,153.09,153.08,0.8248727]
[1724461401234,30.0,153.09,153.08,0.8248727]
[1724461401434,34.053614,153.09,153.08,0.8248727]
[1724461402326,100.01986727,153.09,153.08,0.8248727]
[1724461402509,100.14535727,153.09,153.08,0.8248727]
[1724461403425,100.14577626,153.09,153.08,0.8248727]
[1724461403934,96.09174327,153.09,153.08,0.8248727]
[1724461404431,96.09174327,153.09,153.03,0.78294765]
[1724461404432,26.1654796,153.07,153.03,0.78294765]
[1724461404734,30.96625327,153.06,153.03,0.78294765]
[1724461405133,30.84076327,153.06,153.03,0.78294765]
[1724461405528,0.84076327,153.05,153.03,0.78294765]
[1724461407035,20.84076327,153.08,153.03,0.78294765]
[1724461407241,0.84076327,153.07,153.03,0.78294765]
[1724461408105,27.13173287,153.06,153.03,0.78294765]
[1724461408410,56.1654796,153.04,153.03,0.78294765]
[1724461408718,122.25722287,153.04,153.03,0.78294765]
[1724461409532,96.09174327,153.04,153.03,0.78294765]
[1724461410427,143.86082287,153.04,153.03,0.78294765]
[1724461410650,143.36082287,153.04,153.03,0.78294765]
[1724461414130,19.59,152.97,152.8,15.7932]
[1724461414333,26.1654796,152.94,152.81,26.1654796]
[1724461414641,0.96625327,152.93,152.81,26.1654796]
[1724461414939,21.6036,152.99,152.8,15.7932]
[1724461414940,6.81211526,152.95,152.89,26.1654796]
[1724461415151,0.84076327,152.94,152.89,26.1654796]
[1724461415438,21.6036,152.99,152.89,25.6654796]
[1724461415439,0.84076327,152.98,152.89,25.6654796]
[1724461415639,27.37756327,152.98,152.89,25.6654796]
[1724461415828,20.84076327,152.98,152.89,25.6654796]
[1724461416325,0.84076327,152.98,152.88,26.1654796]
[1724461416538,0.84076327,152.98,152.86,15.7932]
[1724461416739,0.84076327,152.98,152.87,26.1654796]
[1724461417348,0.84076327,152.98,152.89,26.1654796]
[1724461417522,0.84076327,152.97,152.91,26.1654796]
[1724461417723,0.84076327,152.97,152.91,29.7394796]
[1724461418438,0.84076327,152.99,152.91,29.7394796]
[1724461418739,0.84076327,152.98,152.91,29.7394796]
[1724461418943,0.84076327,152.98,152.86,21.8672]
[1724461419239,0.12549,152.97,152.86,48.0326796]
[1724461419725,0.12549,152.98,152.86,48.0326796]
[1724461419942,0.12549,152.98,152.88,26.1654796]
[1724461420541,0.96625327,152.98,152.88,26.1654796]
[1724461421433,0.84076327,152.98,152.88,26.1654796]
[1724461422440,0.84076327,152.99,152.88,26.1654796]
[1724461422649,0.84076327,152.98,152.88,26.1654796]
[1724461423745,0.84076327,152.98,152.9,26.1654796]
[1724461423946,0.84076327,152.99,152.92,26.1654796]
[1724461424149,0.84076327,152.99,152.91,26.1654796]
[1724461426139,0.84076327,152.99,152.93,26.1654796]
[1724461428954,1.0,153.0,152.93,26.1654796]
[1724461429938,1.0,153.0,152.95,26.1654796]
[1724461430261,1.0,153.0,152.99,26.1654796]
[1724461432249,1.0,153.0,152.97,26.1654796]
[1724461432958,1.0,153.0,152.95,26.1654796]
[1724461433347,1.0,153.0,152.93,26.1654796]
[1724461433947,1.0,153.0,152.92,16.2973]
[1724461435843,1.84076327,153.0,152.92,16.2973]
[1724461436045,1.84076327,153.0,152.93,26.1654796]
[1724461436267,1.0,153.0,152.93,26.1654796]
[1724461436454,1.0,153.0,152.95,26.1654796]
[1724461436771,1.0,153.0,152.97,26.1654796]
[1724461437952,1.0,153.0,152.99,26.1654796]
[1724461440850,1.0,153.0,152.95,26.1654796]
[1724461441049,1.0,153.0,152.93,26.1654796]
[1724461441367,1.0,153.0,152.92,23.10755823]
[1724461441368,7.0874,153.0,152.92,16.2973]
[1724461441571,7.0874,153.0,152.91,26.1654796]
[1724461441572,0.84076327,152.99,152.91,26.1654796]
[1724461442458,0.84076327,152.99,152.9,32.85637911]
[1724461446285,7.0874,153.0,152.92,32.85637911]
[1724461446873,7.0874,153.0,152.94,32.85637911]
[1724461447688,0.84076327,152.99,152.92,32.85637911]
[1724461447850,0.84076327,152.99,152.9,32.85637911]
[1724461448049,0.84076327,152.99,152.88,28.54696232]
[1724461448263,0.84076327,152.99,152.89,20.0]
[1724461448458,0.84076327,152.99,152.89,52.85637911]
[1724461448668,0.84076327,152.99,152.89,32.85637911]
[1724461448983,15.4927,152.98,152.89,32.85637911]
[1724461449180,0.84076327,152.97,152.89,32.85637911]
[1724461449977,15.4927,152.98,152.89,32.85637911]
[1724461450282,15.4927,152.98,152.91,32.85637911]
[1724461450660,15.4927,152.98,152.92,1.30763332]
[1724461450863,15.4927,152.98,152.91,32.85637911]
[1724461451076,15.4927,152.98,152.92,1.30762114]
[1724461451296,15.4927,152.98,152.93,1.30754069]
[1724461452386,15.4927,152.98,152.94,1.30742999]
[1724461452558,15.4927,152.98,152.91,32.85637911]
[1724461452757,15.4927,152.98,152.92,0.12549]
[1724461455269,7.0874,153.0,152.93,32.85637911]
[1724461455676,7.0874,153.0,152.95,32.85637911]
[1724461455986,7.0874,153.0,152.96,1.30729044]
[1724461457682,7.0874,153.0,152.95,32.85637911]
[1724461457883,48.71127911,152.99,152.88,6.80627982]
[1724461458086,4.90140241,152.98,152.85,32.85637911]
[1724461458315,4.90140241,152.98,152.85,39.6622229]
[1724461458316,0.84076327,152.98,152.85,39.6622229]
[1724461458922,4.06014703,152.97,152.85,39.6622229]
[1724461459225,6.6574,152.95,152.85,39.6622229]
[1724461459519,6.6574,152.95,152.86,20.0]
[1724461459687,6.6574,152.95,152.86,52.85637911]
[1724461460682,6.6574,152.95,152.87,0.12549]
[1724461460899,0.84076327,152.94,152.87,0.12549]
[1724461461407,0.84076327,152.94,152.86,32.85637911]
[1724461461594,15.8549,152.93,152.85,6.80584379]
[1724461461916,0.84076327,152.92,152.79,1.62346942]
[1724461462119,0.84076327,152.92,152.8,32.85637911]
[1724461462291,0.84076327,152.92,152.8,39.6579519]
[1724461463013,15.8549,152.93,152.82,32.85637911]
[1724461463311,4.05588837,152.92,152.83,1.30825634]
[1724461463500,15.8549,152.93,152.82,32.85637911]
[1724461463700,4.0558541,152.92,152.82,32.85637911]
[1724461463918,15.8549,152.93,152.82,32.85637911]
[1724461464089,4.05582636,152.92,152.82,32.85637911]
[1724461464289,0.84076327,152.91,152.82,32.85637911]
[1724461464501,15.8549,152.93,152.82,32.85637911]
[1724461464704,15.8549,152.93,152.83,0.12549]
[1724461464891,0.84076327,152.92,152.83,0.12549]
[1724461465099,15.8549,152.93,152.83,0.12549]
[1724461465296,15.8549,152.93,152.83,45.12549]
[1724461465514,15.8549,152.93,152.86,32.85637911]
[1724461465716,15.8549,152.93,152.88,32.85637911]
[1724461466316,15.8549,152.93,152.89,1.30786577]
[1724461466521,15.8549,152.93,152.88,32.85637911]
[1724461467037,15.8549,152.93,152.89,1.30786593]
[1724461467211,15.8549,152.93,152.88,32.85637911]
[1724461467820,15.8549,152.93,152.87,0.12549]
[1724461470524,15.8549,152.93,152.88,26.29447572]
[1724461471818,15.8549,152.93,152.89,1.30778647]
[1724461472030,15.8549,152.93,152.9,1.30778667]
[1724461472334,15.8549,152.93,152.9,26.29447572]
[1724461473242,15.8549,152.93,152.88,26.29447572]
[1724461473738,6.6574,152.92,152.88,26.29447572]
[1724461473901,6.6574,152.92,152.82,6.7964483]
[1724461473902,15.8549,152.9,152.82,6.7964483]
[1724461474105,7.49816327,152.89,152.78,27.11934842]
[1724461476557,7.49816327,152.89,152.78,33.7300218]
[1724461477211,22.7295,152.86,152.78,33.7300218]
[1724461477411,0.84076327,152.85,152.78,33.7300218]
[1724461478132,30.0,152.84,152.78,33.7300218]
[1724461478323,0.84076327,152.83,152.78,0.8248727]
[1724461478847,30.0,152.84,152.78,0.8248727]
[1724461479142,22.7295,152.86,152.78,0.8248727]
[1724461479543,22.7295,152.86,152.79,32.9051491]
[1724461479742,22.7295,152.86,152.8,0.12549]
[1724461481658,22.7295,152.86,152.79,32.9051491]
[1724461487432,0.84076327,152.85,152.78,0.8248727]
[1724461487846,22.7295,152.84,152.78,0.8248727]
[1724461489047,0.84076327,152.83,152.78,0.8248727]
[1724461489445,22.7295,152.84,152.78,0.8248727]
[1724461489753,22.7295,152.84,152.78,33.7300218]
[1724461489953,22.7295,152.84,152.8,32.9051491]
[1724461490149,22.7295,152.84,152.78,33.7300218]
[1724461492470,0.84076327,152.83,152.78,0.8248727]
[1724461494055,23.57026327,152.84,152.78,0.8248727]
[1724461497093,22.3067,152.83,152.78,0.8248727]
[1724461497262,22.3067,152.81,152.78,0.8248727]
[1724461497460,0.84076327,152.8,152.78,0.8248727]
[1724461499093,0.84076327,152.79,152.7,26.35468811]
[1724461499593,22.3067,152.78,152.7,26.35468811]
[1724461499759,0.84076327,152.77,152.68,26.35468811]
[1724461500280,22.3067,152.78,152.7,26.35468811]
[1724461500587,0.84076327,152.77,152.7,26.35468811]
[1724461501466,22.3067,152.78,152.66,6.79736775]
[1724461501467,22.3067,152.78,152.72,26.35468811]
[1724461501876,22.3067,152.78,152.73,1.3092425]
[1724461502082,22.3067,152.78,152.72,0.12549]
[1724461502382,22.3067,152.78,152.73,26.35468811]
[1724461502889,22.3067,152.78,152.75,26.35468811]
[1724461503488,22.3067,152.82,152.75,26.35468811]
[1724461504360,22.3067,152.82,152.77,26.35468811]
[1724461504573,22.3067,152.82,152.79,26.35468811]
[1724461505155,7.38486327,152.81,152.66,13.90583175]
[1724461505373,22.3067,152.8,152.69,26.35468811]
[1724461505578,0.84076327,152.79,152.69,26.35468811]
[1724461507098,0.84076327,152.79,152.7,0.12549]
[1724461508765,0.84076327,152.79,152.69,45.12549]
[1724461509280,0.84076327,152.79,152.69,0.12549]
[1724461509590,16.0741,152.77,152.66,32.94890044]
[1724461509799,0.84076327,152.76,152.66,32.94890044]
[1724461510682,0.84076327,152.76,152.64,39.74062685]
[1724461510892,0.84076327,152.76,152.64,32.94890044]
[1724461510893,16.0741,152.74,152.64,32.94890044]
[1724461511095,16.0741,152.74,152.63,0.8248727]
[1724461511096,0.84076327,152.73,152.66,32.94890044]
[1724461511268,16.91486327,152.74,152.66,32.94890044]
[1724461511587,16.0741,152.74,152.66,32.94890044]
[1724461511973,16.0741,152.74,152.68,32.94890044]
[1724461512580,16.0741,152.74,152.69,45.12549]
[1724461512882,16.0741,152.74,152.7,32.94890044]
[1724461513080,6.2326,152.75,152.72,32.94890044]
[1724461513845,16.0741,152.78,152.74,32.94890044]
[1724461514096,6.2326,152.79,152.75,0.12549]
[1724461516802,6.2326,152.79,152.71,32.94890044]
[1724461517007,0.84076327,152.78,152.71,32.94890044]
[1724461518815,0.84076327,152.76,152.68,32.94890044]
[1724461520504,0.84076327,152.76,152.69,0.12549]
[1724461520930,6.0588,152.74,152.63,0.8248727]
[1724461521144,6.5493,152.69,152.63,0.8248727]
[1724461521360,6.0588,152.67,152.63,0.8248727]
[1724461521630,0.84076327,152.66,152.63,0.8248727]
[1724461521803,6.0588,152.67,152.63,0.8248727]
[1724461522207,0.84076327,152.66,152.63,0.8248727]
[1724461522428,6.0588,152.67,152.63,0.8248727]
[1724461523631,6.0588,152.67,152.64,1.30998582]
[1724461523831,6.0588,152.67,152.63,0.8248727]
[1724461524128,6.0588,152.67,152.63,33.77377314]
[1724461526363,6.0588,152.71,152.63,33.77377314]
[1724461526553,6.0588,152.71,152.66,32.94890044]
[1724461528831,6.0588,152.71,152.67,0.12549]
[1724461529854,6.0588,152.71,152.68,32.94890044]
[1724461530156,15.8651,152.73,152.68,32.94890044]
[1724461530856,0.84076327,152.72,152.63,0.8248727]
[1724461533753,0.84076327,152.72,152.64,0.12549]
[1724461534562,0.84076327,152.72,152.64,33.07439044]
[1724461534757,15.8651,152.73,152.64,33.07439044]
[1724461534758,15.8651,152.73,152.66,32.94890044]
[1724461535566,15.8651,152.73,152.68,32.94890044]
[1724461536275,15.8651,152.73,152.67,0.12549]
[1724461536569,15.8651,152.73,152.68,32.94890044]
[1724461540967,15.8651,152.73,152.67,0.12549]
[1724461540968,6.0588,152.75,152.7,32.94890044]
[1724461543375,15.7024,152.74,152.63,0.8248727]
[1724461543670,6.5446,152.72,152.63,0.8248727]
[1724461543893,0.84076327,152.71,152.63,0.8248727]
[1724461544956,7.38536327,152.72,152.63,0.8248727]
[1724461546184,7.38536327,152.72,152.64,0.12549]
[1724461547477,6.5446,152.72,152.64,0.12549]
[1724461548559,0.84076327,152.71,152.64,0.12549]
[1724461548762,6.5446,152.72,152.65,32.94890044]
[1724461548963,6.5446,152.72,152.66,0.12549]
[1724461550191,6.5446,152.72,152.68,32.94890044]
[1724461551164,6.5446,152.72,152.66,33.07439044]
[1724461551363,6.5446,152.72,152.66,0.12549]
[1724461551579,6.5446,152.72,152.65,45.12549]
[1724461551773,0.84076327,152.71,152.63,0.8248727]
[1724461552479,6.5446,152.72,152.63,0.8248727]
[1724461552480,6.5446,152.72,152.68,32.94890044]
[1724461553075,6.5446,152.72,152.65,32.94890044]
[1724461553278,6.5446,152.72,152.66,45.12549]
[1724461554683,6.5446,152.72,152.69,32.94890044]
[1724461554866,6.5446,152.72,152.7,1.43488282]
[1724461555070,6.5446,152.72,152.71,1.3094045]
[1724461556683,6.5446,152.72,152.7,33.07439044]
[1724461556980,6.5446,152.72,152.71,1.3093933]
[1724461557293,6.5446,152.72,152.71,1.4348833]
[1724461557597,15.7024,152.74,152.71,1.4348833]
[1724461557771,15.7024,152.74,152.72,34.38363073]
[1724461558583,15.7024,152.74,152.72,26.47414018]
[1724461559260,15.7024,152.74,152.7,26.34865018]
[1724461560458,15.7024,152.74,152.69,0.12549]
[1724461560697,7.11636327,152.73,152.63,0.8248727]
[1724461560898,25.90072824,152.72,152.63,0.8248727]
[1724461561067,0.84076327,152.71,152.63,0.8248727]
[1724461561476,15.3068,152.72,152.63,0.8248727]
[1724461561667,15.3068,152.72,152.64,26.34865018]
[1724461562488,15.3068,152.72,152.66,32.95638153]
[1724461562694,15.3068,152.72,152.64,32.95638153]
[1724461563294,15.3068,152.72,152.65,45.12549]
[1724461564902,15.3068,152.72,152.66,32.95638153]
[1724461565076,15.3068,152.72,152.67,0.12549]
[1724461565285,15.3068,152.72,152.66,32.95638153]
[1724461565605,15.3068,152.72,152.67,0.12549]
[1724461566597,15.3068,152.72,152.66,0.12549]
[1724461566811,15.3068,152.72,152.63,0.8248727]
[1724461566812,16.14756327,152.72,152.63,0.8248727]
[1724461567114,4.0461937,152.71,152.63,0.8248727]
[1724461567282,0.84076327,152.7,152.63,0.8248727]
[1724461567602,6.2756,152.69,152.63,0.8248727]
[1724461568874,6.2756,152.69,152.64,1.30988699]
[1724461569081,6.2756,152.69,152.65,1.30978329]
[1724461570402,6.2756,152.69,152.66,32.95638153]
[1724461570727,6.2756,152.69,152.67,1.30964274]
[1724461570891,15.3068,152.72,152.68,0.12549]
[1724461571097,15.3068,152.72,152.67,45.0]
[1724461571722,15.3068,152.72,152.66,33.08187153]
[1724461572201,15.3068,152.72,152.67,45.25098]
[1724461573318,15.3068,152.72,152.68,32.95638153]
[1724461573495,6.2756,152.73,152.7,32.95638153]
[1724461573695,6.2756,152.73,152.71,1.3093209]
[1724461574812,6.2756,152.73,152.7,32.95638153]
[1724461575023,6.2756,152.73,152.71,0.12549]
[1724461579623,15.3068,152.76,152.72,32.95638153]
[1724461581814,15.3068,152.76,152.73,0.12549]
[1724461583842,6.4282,152.77,152.74,26.34726231]
[1724461584045,6.4282,152.77,152.73,46.43464546]
[1724461584046,6.4282,152.77,152.76,26.34726231]
[1724461584722,6.4282,152.77,152.64,21.9375113]
[1724461584930,6.4282,152.77,152.68,26.34726231]